fUSD/lending_fUSD_20240406
["ID","MTS","AMOUNT","RATE_DAILY","PERIOD"]
[321703931,1712413834506,-2493.75,0.00023302,2]
[321703932,1712413834516,-746.1,0.00023302,2]
[321703933,1712413834527,-1430.75,0.00023302,2]
[321703934,1712413834536,-511.22,0.00023302,2]
[321703935,1712413834546,-500.0,0.00023302,2]
[321703936,1712413834555,-1085.74,0.00023302,2]
[321703937,1712413834565,-500.0,0.00023302,2]
[321703938,1712413834574,-594.14,0.00023302,2]
[321703939,1712413834584,-551.93,0.00023302,2]
[321703940,1712413834593,-1503.21,0.00023302,2]
[321703941,1712413834603,-673.67,0.00023302,2]
[321703942,1712413834612,-500.0,0.00023302,2]
[321703943,1712413834621,-500.0,0.00023302,2]
[321703944,1712413834631,-500.0,0.00023302,2]
[321703945,1712413834641,-500.0,0.00023302,2]
[321703946,1712413834650,-150.0,0.00023303,2]
[321703947,1712413834660,-6685.1880702,0.00023303,2]
[321703948,1712413834669,-47795.64602217,0.00023303,2]
[321703949,1712413834688,-8247.33007887,0.00023303,2]
[321703950,1712413834699,-7466.08954647,0.00023303,2]
[321703951,1712413834712,-4725.40233519,0.00023303,2]
[321703952,1712413834724,-440.285,0.00023303,2]
[321703953,1712413834736,-3645.27648316,0.00023303,2]
[321703954,1712413834751,-1030.71395112,0.00023303,2]
[321703955,1712413834765,-1231.02136233,0.00023303,2]
[321703956,1712413834777,-1016.27333657,0.00023303,2]
[321703957,1712413834800,-1403.17306,0.00023303,2]
[321703958,1712413834823,-2207.73331184,0.00023303,2]
[321703959,1712413834835,-11950.22604787,0.00023303,2]
[321703960,1712413834849,-992.20663566,0.00023303,2]
[321703976,1712413837856,-448.9265607,0.00023216,2]
[321703977,1712413837867,-26613.44746579,0.00023303,2]
[321703978,1712413838017,-69180.73536286,0.00023303,2]
[321703979,1712413838027,-18930.5751605,0.00023303,2]
[321703980,1712413838036,-59.46973508,0.00023303,2]
[321703981,1712413838073,-5326.92463172,0.00023303,2]
[321703982,1712413838083,-150.0,0.00023305,2]
[321703983,1712413838092,-326.27264637,0.00023309,2]
[321703984,1712413838102,-233.12932164,0.00023309,2]
[321703985,1712413838113,-193.70754222,0.00023309,2]
[321703986,1712413838123,-217.28613312,0.00023309,2]
[321703987,1712413838132,-155.0,0.00023309,2]
[321703988,1712413838142,-199.98845264,0.00023309,2]
[321703989,1712413838152,-199.60579167,0.00023309,2]
[321703990,1712413838162,-2621.58302011,0.00023309,2]
[321703991,1712413838171,-407.63765975,0.00023309,2]
[321703992,1712413838181,-165.5544226,0.00023309,2]
[321703993,1712413838191,-237.73919776,0.00023309,2]
[321703994,1712413838200,-255.91009224,0.00023309,2]
[321703995,1712413838210,-150.0,0.00023309,2]
[321703996,1712413838219,-17837.9083877,0.0002331,2]
[321703997,1712413838229,-500.0,0.0002331,2]
[321703998,1712413838238,-500.0,0.0002331,2]
[321703999,1712413838247,-500.0,0.0002331,2]
[321704000,1712413838257,-2500.09,0.0002331,2]
[321704001,1712413838266,-541.48,0.0002331,2]
[321704002,1712413838276,-537.19,0.0002331,2]
[321704003,1712413838285,-3000.0,0.0002331,2]
[321704005,1712413838294,-500.0,0.0002331,2]
[321704008,1712413838304,-500.0,0.0002331,2]
[321704010,1712413838313,-500.0,0.0002331,2]
[321704012,1712413838323,-500.0,0.0002331,2]
[321704013,1712413838333,-500.0,0.0002331,2]
[321704014,1712413838341,-500.0,0.0002331,2]
[321704015,1712413838350,-845.86,0.0002331,2]
[321704016,1712413838359,-500.0,0.0002331,2]
[321704017,1712413838368,-1125.62,0.0002331,2]
[321704018,1712413838377,-500.0,0.0002331,2]
[321704019,1712413838387,-500.0,0.0002331,2]
[321704020,1712413838396,-935.31,0.0002331,2]
[321704021,1712413838405,-259.23106201,0.0002331,2]
[321704022,1712413838415,-604.45,0.0002331,2]
[321704023,1712413838424,-3164.54,0.0002331,2]
[321704024,1712413838433,-919.62,0.0002331,2]
[321704025,1712413838443,-500.0,0.0002331,2]
[321704026,1712413838452,-2493.75,0.0002331,2]
[321704027,1712413838462,-746.1,0.0002331,2]
[321704028,1712413838470,-500.0,0.0002331,2]
[321704029,1712413838480,-500.0,0.0002331,2]
[321704030,1712413838489,-1430.75,0.0002331,2]
[321704031,1712413838499,-500.0,0.0002331,2]
[321704032,1712413838508,-500.0,0.0002331,2]
[321704033,1712413838517,-500.0,0.0002331,2]
[321704034,1712413838527,-500.0,0.0002331,2]
[321704035,1712413838536,-1085.74,0.0002331,2]
[321704036,1712413838546,-500.0,0.0002331,2]
[321704037,1712413838555,-500.0,0.0002331,2]
[321704038,1712413838564,-551.93,0.0002331,2]
[321704039,1712413838574,-673.67,0.0002331,2]
[321704040,1712413838583,-500.0,0.0002331,2]
[321704041,1712413838592,-500.0,0.0002331,2]
[321704042,1712413838601,-500.0,0.0002331,2]
[321704043,1712413838610,-643.03501338,0.0002331,2]
[321704044,1712413838620,-500.0,0.0002331,2]
[321704045,1712413838637,-500.0,0.0002331,2]
[321704046,1712413838651,-500.0,0.0002331,2]
[321704047,1712413838660,-500.0,0.0002331,2]
[321704048,1712413838669,-500.0,0.0002331,2]
[321704049,1712413838678,-500.0,0.0002331,2]
[321704050,1712413838687,-500.0,0.0002331,2]
[321704051,1712413838697,-500.0,0.0002331,2]
[321704052,1712413838707,-500.0,0.0002331,2]
[321704053,1712413838717,-264.14,0.0002331,2]
[321704054,1712413838730,-1754.47444797,0.00023311,2]
[321704059,1712413842469,-1738.12712077,0.00022967,2]
[321704066,1712413842655,-204.87287923,0.00022967,2]
[321704068,1712413842665,-590.0,0.00023188,2]
[321704070,1712413842678,-1925.49375088,0.0002331,2]
[321704072,1712413842688,-608.17647906,0.00023311,2]
[321704082,1712413842831,-2118.81662446,0.00023311,2]
[321704086,1712413843049,-6183.87940013,0.00023311,2]
[321704088,1712413843262,-1.8047993,0.00023311,2]
[321704156,1712413873812,994.96,0.00027,30]
[321704240,1712414015381,249.7015094,0.00028081,120]
[321704247,1712414099355,536.87,0.00019797,2]
[321704251,1712414131959,1467.88671919,0.00019797,2]
[321704252,1712414140528,500.0,0.0001899,2]
[321704253,1712414141379,500.0,0.0002036,2]
[321704254,1712414142114,500.0,0.00020086,2]
[321704255,1712414147953,502.50510858,0.00019797,2]
[321704256,1712414160050,9742.25123682,0.00019797,2]
[321704258,1712414274561,5000.0,0.00021,2]
[321704265,1712414576612,510.02,0.00019711,2]
[321704267,1712414600786,-362.19769809,0.00021168,2]
[321704268,1712414600807,-4570.53799336,0.00021168,2]
[321704269,1712414600828,-2987.6067788,0.00021181,2]
[321704270,1712414600849,-334.65752975,0.00021182,2]
[321704271,1712414688194,1450.0,0.00021,3]
[321704274,1712414924214,364.59949818,0.00021,2]
[321704275,1712414954131,-362.19769809,0.00021181,2]
[321704276,1712414954151,-165.34247025,0.00021182,2]
[321704277,1712414960213,-500.0,0.00021456,2]
[321704278,1712414960234,-160.03398368,0.00021539,2]
[321704280,1712415009409,500.0,0.0002036,2]
[321704281,1712415011548,500.0,0.00021456,2]
[321704289,1712415032125,-150.0,0.00021644,2]
[321704290,1712415032135,-319.29674785,0.00021684,2]
[321704291,1712415032148,-95.74325215,0.00021684,2]
[321704292,1712415032158,-200.0,0.00021684,2]
[321704293,1712415032178,-136.6439731,0.00021693,2]
[321704294,1712415032283,-13.3560269,0.00021693,2]
[321704295,1712415032293,-584.96,0.00021694,2]
[321704296,1712415032302,-2751.0,0.00021694,2]
[321704297,1712415032312,-112.83752153,0.00021719,2]
[321704298,1712415032324,-1064.07063582,0.00021719,2]
[321704299,1712415032350,-29.29184265,0.00021719,2]
[321704300,1712415032360,-233.66815735,0.00021733,2]
[321704301,1712415032398,-314.42749356,0.00021733,2]
[321704302,1712415032410,-538.33434909,0.00021733,2]
[321704303,1712415032420,-529.16,0.00021743,2]
[321704304,1712415032430,-7000.0,0.00022,2]
[321704305,1712415032440,-160.03398367,0.00022096,2]
[321704306,1712415032449,-2117.0,0.000223,2]
[321704307,1712415032459,-218.35,0.00022313,2]
[321704308,1712415032468,-218.35,0.00022319,2]
[321704309,1712415032478,-218.35,0.00022325,2]
[321704310,1712415032487,-218.35,0.00022331,2]
[321704311,1712415032497,-218.35,0.00022337,2]
[321704312,1712415032506,-218.35,0.00022342,2]
[321704313,1712415032515,-218.35,0.00022348,2]
[321704314,1712415032525,-218.35,0.00022354,2]
[321704315,1712415032534,-218.35,0.0002236,2]
[321704316,1712415032544,-218.35,0.00022366,2]
[321704317,1712415032553,-218.35,0.00022372,2]
[321704318,1712415032562,-218.35,0.00022378,2]
[321704319,1712415032572,-218.35,0.00022384,2]
[321704320,1712415032581,-218.35,0.00022389,2]
[321704321,1712415032591,-218.35,0.00022395,2]
[321704322,1712415032600,-218.35,0.00022401,2]
[321704323,1712415032609,-218.35,0.00022407,2]
[321704324,1712415032619,-218.35,0.00022413,2]
[321704325,1712415032628,-218.35,0.00022419,2]
[321704326,1712415032637,-218.35,0.00022425,2]
[321704327,1712415032647,-417.24,0.00022548,2]
[321704328,1712415032657,-319.64893616,0.00022552,2]
[321704329,1712415036936,510.77,0.00020359,2]
[321704353,1712415038025,-783.12017279,0.00022,2]
[321704356,1712415038034,-180.35106384,0.00022552,2]
[321704359,1712415038044,-510.77,0.00022623,2]
[321704361,1712415038053,-160.03398367,0.00022653,2]
[321704363,1712415038063,-843.39817003,0.00022843,2]
[321704366,1712415038084,-313.27,0.00022843,2]
[321704369,1712415038096,-262.65011809,0.00022843,2]
[321704372,1712415038136,-820.17749397,0.00022843,2]
[321704373,1712415038149,-19159.41162545,0.00022843,2]
[321704374,1712415038159,-1020.08333713,0.00022845,2]
[321704375,1712415038168,-1061.59032065,0.00022845,2]
[321704376,1712415038178,-480.63736496,0.00023,2]
[321704377,1712415038189,-50.67827281,0.00023,2]
[321704379,1712415038202,-1206.88450943,0.00023,2]
[321704381,1712415038213,-19765.63627539,0.00023,2]
[321704384,1712415038225,-6419.76781148,0.00023,2]
[321704386,1712415038237,-20111.32166242,0.00023,2]
[321704389,1712415038263,-1066.32121625,0.00023,2]
[321704391,1712415038276,-1340.01178555,0.00023,2]
[321704392,1712415038312,-920.03344091,0.00023,2]
[321704393,1712415038372,-7161.09999999,0.00023,2]
[321704394,1712415038384,-1997.0064662,0.00023,2]
[321704395,1712415038429,-2453.07925518,0.00023,2]
[321704396,1712415038482,-651.59,0.00023,2]
[321704456,1712415040428,500.0,0.0002036,2]
[321704460,1712415040449,-1165.49346441,0.00023,2]
[321704462,1712415040461,-1393.93158636,0.00023,2]
[321704464,1712415040473,-264.07000007,0.00023,2]
[321704473,1712415040555,-4006.4970863,0.00023,2]
[321704497,1712415042004,432.67220707,0.00021456,2]
[321704514,1712415046160,-10386.18967845,0.00023,2]
[321704515,1712415046169,-1500.0,0.00023,3]
[321704516,1712415046178,-116.40082408,0.0002308,2]
[321704517,1712415069701,2214.05676868,0.00021,2]
[321704518,1712415069732,3202.51445235,0.00021,2]
[321704519,1712415069767,98615.40050182,0.00021,2]
[321704520,1712415069807,432279.06392917,0.00021,2]
[321704521,1712415100605,1208.35708753,0.0002,2]
[321704522,1712415112070,20119.8272897,0.00021,2]
[321704523,1712415118238,500.0,0.0002036,2]
[321704524,1712415120576,1467.88671919,0.00021,2]
[321704526,1712415124229,1038.04438346,0.00021,2]
[321704527,1712415128499,19625.70856008,0.00021,2]
[321704528,1712415133538,1033.74556397,0.00021,2]
[321704529,1712415134743,1205.14314942,0.00021,2]
[321704530,1712415135925,11906.34427331,0.00021,2]
[321704531,1712415138224,1041.74537765,0.00021,2]
[321704532,1712415143434,155.50652066,0.00020979,2]
[321704533,1712415144776,6709.38134864,0.00021,2]
[321704534,1712415147538,1033.29587285,0.00021,2]
[321704535,1712415149784,590.92939315,0.00015,2]
[321704536,1712415190436,19616.28435061,0.00015,2]
[321704537,1712415192448,1366.40848946,0.00015,2]
[321704538,1712415208433,187.97482355,0.00015,2]
[321704539,1712415214429,205.72737598,0.00015,2]
[321704545,1712415257342,556.22,0.0002,2]
[321704548,1712415455414,50000.0,0.00022,4]
[321704549,1712415485159,1530.34273088,0.0002,2]
[321704552,1712415662533,2000.0,0.0002,2]
[321704553,1712415725580,620.41,0.00019623,2]
[321704554,1712415893012,195.72,0.00017137,2]
[321704557,1712416095137,318.7508899,0.00017137,2]
[321704558,1712416095495,2534.66758285,0.00012853,2]
[321704559,1712416113100,221.59305025,0.00017137,2]
[321704560,1712416113450,943.07764061,0.00012853,2]
[321704561,1712416147120,-4319.68197002,0.000212,2]
[321704562,1712416147141,-164.05123617,0.000212,2]
[321704563,1712416147161,-150.0,0.000212,2]
[321704564,1712416147180,-640.08300789,0.00021201,2]
[321704565,1712416147200,-326.43277157,0.00021201,2]
[321704566,1712416147219,-779.22607251,0.00021202,2]
[321704567,1712416147239,-1000.0,0.00021203,2]
[321704568,1712416147258,-500.0,0.00021203,2]
[321704569,1712416147279,-167.76267832,0.00021217,2]
[321704570,1712416164113,-400.0,0.00021322,2]
[321704571,1712416164135,-1708.32196988,0.00021325,2]
[321704572,1712416164158,-7605.86832276,0.00021343,2]
[321704573,1712416164179,-500.0,0.00021387,2]
[321704574,1712416164202,-1201.48,0.00021404,2]
[321704575,1712416164227,-532.03,0.00021404,2]
[321704576,1712416164250,-500.0,0.00021456,2]
[321704577,1712416164272,-150.0,0.00021546,2]
[321704578,1712416164295,-3178.37,0.00021551,2]
[321704580,1712416165360,375.57,0.00021482,2]
[321704585,1712416207227,614.28,0.00019724,2]
[321704586,1712416213424,463.11255425,0.0002036,2]
[321704587,1712416213448,36.88744575,0.0002036,2]
[321704629,1712416232351,-274.34506394,0.00021456,2]
[321704631,1712416232361,-219.47390492,0.00021628,2]
[321704642,1712416232510,-457.08997388,0.00021628,2]
[321704644,1712416232522,-323.4361212,0.00021628,2]
[321704646,1712416232532,-467.97,0.00021629,2]
[321704647,1712416232545,-162.14,0.00021653,2]
[321704648,1712416232554,-163.0309257,0.00021752,2]
[321704649,1712416232563,-162.14,0.00021814,2]
[321704650,1712416232573,-2434.94645992,0.00021847,2]
[321704651,1712416232582,-705.59837989,0.0002185,2]
[321704652,1712416232591,-167.7626783,0.00021881,2]
[321704653,1712416232601,-152.5,0.00021909,2]
[321704654,1712416232611,-250.0,0.00021918,2]
[321704655,1712416232620,-385.29,0.00021919,2]
[321704656,1712416232629,-152.5,0.00021919,2]
[321704657,1712416232639,-152.5,0.00021929,2]
[321704658,1712416232648,-152.5,0.00021939,2]
[321704659,1712416232658,-152.5,0.00021949,2]
[321704660,1712416232668,-152.5,0.00021959,2]
[321704662,1712416232677,-152.5,0.00021969,2]
[321704664,1712416232687,-162.14,0.00021975,2]
[321704666,1712416232696,-152.5,0.00021979,2]
[321704668,1712416232705,-614.28,0.00021988,2]
[321704670,1712416232715,-152.5,0.00021989,2]
[321704672,1712416232724,-152.5,0.00021998,2]
[321704674,1712416232733,-12006.0,0.00022,2]
[321704678,1712416232743,-783.12017279,0.00022007,2]
[321704681,1712416232752,-152.5,0.00022008,2]
[321704683,1712416232761,-152.5,0.00022018,2]
[321704686,1712416232770,-162.14,0.00022136,2]
[321704688,1712416232779,-805.0103628,0.00022145,2]
[321704691,1712416232789,-167.1,0.0002218,2]
[321704694,1712416232798,-156.18,0.00022238,2]
[321704697,1712416232807,-162.14,0.00022297,2]
[321704700,1712416232817,-162.14,0.00022459,2]
[321704703,1712416232827,-7309.021807,0.000225,2]
[321704706,1712416232837,-167.7626783,0.00022545,2]
[321704709,1712416232846,-162.14,0.0002262,2]
[321704712,1712416232856,-4091.67132023,0.00022768,2]
[321704715,1712416232865,-296.92163089,0.00022768,2]
[321704718,1712416232874,-162.14,0.00022781,2]
[321704721,1712416232883,-150.0,0.00022828,2]
[321704723,1712416232892,-2295.8730242,0.0002285,2]
[321704726,1712416232902,-321.33216,0.0002285,2]
[321704728,1712416232911,-1220.62658197,0.00022998,2]
[321704730,1712416232921,-205.96207179,0.00022998,2]
[321704732,1712416232930,-407.93685318,0.00022998,2]
[321704734,1712416232942,-778.55215115,0.00022998,2]
[321704736,1712416232952,-640.08300789,0.00022998,2]
[321704738,1712416232961,-390.51995141,0.00022998,2]
[321704740,1712416232970,-283.62081954,0.00022998,2]
[321704742,1712416232979,-12494.96550594,0.00022998,3]
[321704744,1712416232991,-3505.03449406,0.00022998,3]
[321704746,1712416233001,-236.90780662,0.00022999,2]
[321704748,1712416233010,-905.0099225,0.00022999,2]
[321704750,1712416233020,-3437.65359284,0.00023,2]
[321704752,1712416233032,-6273.64462757,0.00023,2]
[321704754,1712416233044,-5029.99984845,0.00023,2]
[321704789,1712416238223,-451.63535208,0.00023,2]
[321704790,1712416238235,-15174.01799429,0.00023,2]
[321704791,1712416238387,-3073.7629553,0.00023,2]
[321704792,1712416238446,-1368.30702283,0.00023,2]
[321704793,1712416238503,-1785.97129089,0.00023,2]
[321704794,1712416238624,-5882.80332458,0.00023,2]
[321704795,1712416238639,-210.43343187,0.00023,2]
[321704796,1712416238650,-864.04451331,0.00023,2]
[321704797,1712416238659,-150.0,0.00023,2]
[321704798,1712416238668,-2028.44088666,0.00023112,2]
[321704799,1712416238683,-800.0,0.00023123,2]
[321704800,1712416238693,-500.0,0.00023123,2]
[321704801,1712416238702,-150.0,0.0002318,2]
[321704802,1712416238715,-150.0,0.0002318,2]
[321704803,1712416238725,-277.0,0.0002318,2]
[321704805,1712416238735,-1943.0,0.0002318,2]
[321704806,1712416238745,-214.0,0.0002318,2]
[321704807,1712416238755,-354.0,0.0002318,2]
[321704808,1712416238766,-277.62050816,0.00023191,2]
[321704809,1712416238777,-5265.5199705,0.00023197,2]
[321704810,1712416238787,-678.8638,0.00023199,2]
[321704811,1712416238796,-639.0851,0.00023199,2]
[321704812,1712416238807,-1407.1727,0.000232,2]
[321704813,1712416238818,-304.39416803,0.00023201,2]
[321704814,1712416238829,-167.7626783,0.00023209,2]
[321704815,1712416238839,-7500.0,0.00023211,2]
[321704816,1712416238849,-156.82066821,0.00023212,2]
[321704817,1712416238859,-4295.77477818,0.00023212,2]
[321704818,1712416238872,-3760.41721197,0.00023212,2]
[321704819,1712416238882,-169.15456791,0.00023212,2]
[321704820,1712416238893,-193.9452949,0.00023212,2]
[321704821,1712416238903,-776.38413154,0.00023212,2]
[321704822,1712416238913,-257.71607162,0.00023212,2]
[321704823,1712416238924,-1579.60223243,0.00023212,2]
[321704824,1712416238934,-16654.10005327,0.00023247,2]
[321704825,1712416238958,-27816.73995784,0.00023247,2]
[321704826,1712416238970,-5529.1599889,0.00023247,2]
[321704827,1712416238980,-1878.9799989,0.00023277,2]
[321704828,1712416238990,-275.95114944,0.00023297,2]
[321704829,1712416238999,-23524.7990946,0.00023298,2]
[321704833,1712416240428,-12318.40448293,0.00023298,2]
[321704834,1712416240441,-1243.13849957,0.00023298,2]
[321704835,1712416240455,-312.22591379,0.00023298,2]
[321704836,1712416240466,-1153.96913456,0.00023298,2]
[321704837,1712416240477,-166.94364196,0.00023298,2]
[321704838,1712416240487,-188.69443163,0.00023298,2]
[321704839,1712416240497,-266.40935964,0.00023298,2]
[321704840,1712416240507,-710.8903092,0.00023298,2]
[321704841,1712416240519,-193.57746094,0.00023298,2]
[321704842,1712416240530,-552.75595454,0.00023298,2]
[321704843,1712416240539,-158.70106662,0.00023298,2]
[321704844,1712416240548,-157.32782471,0.00023298,2]
[321704845,1712416240558,-3880.73647925,0.00023299,2]
[321704846,1712416240794,-294.28916171,0.00023299,2]
[321704847,1712416240804,-395.24480708,0.00023299,2]
[321704848,1712416240873,-104.75519292,0.00023299,2]
[321704849,1712416240884,-395.59980706,0.00023299,2]
[321704850,1712416240896,-145.73414782,0.00023299,2]
[321704851,1712416240906,-292.29085215,0.00023299,2]
[321704852,1712416240917,-207.70914785,0.00023299,2]
[321704853,1712416240926,-384.65603494,0.00023299,2]
[321704858,1712416243312,-6010.81782379,0.00023212,2]
[321704859,1712416243543,-1866.94416075,0.00023212,2]
[321704860,1712416243556,-1789.03556787,0.00023212,2]
[321704891,1712416297020,5347.84621041,0.00027001,30]
[321704893,1712416514617,1450.0,0.00021,3]
[321704895,1712416697117,669.24,0.0001984,2]
[321704897,1712416993384,2556.845493,0.00020902,2]
[321704902,1712417165406,500.0,0.0002036,2]
[321704903,1712417165452,500.0,0.0002036,2]
[321704904,1712417165640,2534.66758285,0.00015677,2]
[321704905,1712417187582,1324.52838668,0.00015677,2]
[321704960,1712417189216,260.23749187,0.00020902,2]
[321704961,1712417190412,362.19769809,0.00021,2]
[321704962,1712417192078,485.94058574,0.00021,2]
[321704963,1712417193583,1000.0,0.00021,2]
[321704964,1712417206397,500.0,0.0002036,2]
[321704965,1712417206662,500.0,0.0002036,2]
[321704966,1712417213397,635.77,0.00019367,2]
[321705079,1712417272120,1000.0,0.00021,2]
[321705085,1712417294594,165.68374701,0.00021,2]
[321705089,1712417307203,5977.27826535,0.00021,2]
[321705090,1712417308350,500.0,0.0002036,2]
[321705091,1712417308936,500.0,0.0002036,2]
[321705098,1712417350624,1000.0,0.00021,2]
[321705099,1712417350734,1665.8637839,0.00021,2]
[321705118,1712417415961,738.0,0.00021,2]
[321705119,1712417423124,738.77677615,0.00021,2]
[321705128,1712417431458,-155.0,0.00021001,2]
[321705129,1712417431470,-4319.68197002,0.00021001,2]
[321705130,1712417431480,-1626.0,0.00021002,2]
[321705131,1712417431490,-540.24,0.00021231,2]
[321705132,1712417431499,-150.0,0.00021271,2]
[321705133,1712417431509,-4961.14592962,0.00021272,2]
[321705134,1712417431521,-1505.41407038,0.00021272,2]
[321705135,1712417431531,-200.0,0.00021299,2]
[321705136,1712417431541,-1173.58,0.00021299,2]
[321705137,1712417431550,-240.67,0.00021312,2]
[321705138,1712417431559,-250.0,0.00021326,2]
[321705139,1712417431569,-499.99,0.00021327,2]
[321705140,1712417431578,-12443.89,0.00021328,2]
[321705141,1712417431587,-150.99,0.00021328,2]
[321705142,1712417431597,-500.0,0.00021334,2]
[321705143,1712417431607,-150.0,0.00021336,2]
[321705144,1712417431617,-425.63,0.00021451,2]
[321705145,1712417431627,-732.38,0.00021454,2]
[321705146,1712417431638,-2021.14845002,0.00021454,2]
[321705147,1712417431652,-716.02422456,0.00021454,2]
[321705148,1712417431665,-863.62732542,0.00021454,2]
[321705149,1712417431675,-500.0,0.00021456,2]
[321705150,1712417431685,-500.0,0.00021456,2]
[321705151,1712417431694,-500.0,0.00021456,2]
[321705152,1712417431704,-500.0,0.00021456,2]
[321705153,1712417431714,-7535.34,0.00021466,2]
[321705154,1712417431725,-1645.53,0.00021493,2]
[321705155,1712417431735,-307.48,0.00021496,2]
[321705156,1712417431744,-307.48,0.00021555,2]
[321705157,1712417431753,-307.48,0.00021614,2]
[321705158,1712417431763,-635.77,0.00021631,2]
[321705159,1712417431776,-307.48,0.00021673,2]
[321705160,1712417431786,-307.48,0.00021732,2]
[321705161,1712417431796,-574.37,0.00021769,2]
[321705162,1712417431806,-307.48,0.00021791,2]
[321705163,1712417431815,-307.48,0.0002185,2]
[321705164,1712417431826,-14931.86166925,0.00021887,2]
[321705165,1712417431836,-464.63554701,0.00021895,2]
[321705166,1712417431846,-300.26659085,0.00021895,2]
[321705167,1712417431856,-155.27580194,0.00021895,2]
[321705169,1712417431866,-1100.51632605,0.00021895,2]
[321705170,1712417431876,-157.14414491,0.00021895,2]
[321705171,1712417431885,-1968.4207604,0.00021895,2]
[321705172,1712417431894,-1253.03389142,0.00021895,2]
[321705173,1712417431904,-549.43032654,0.00021895,2]
[321705174,1712417431913,-619.85903412,0.00021895,2]
[321705175,1712417431922,-640.08300789,0.00021895,2]
[321705176,1712417431932,-1742.29063559,0.00021895,2]
[321705177,1712417431942,-312.22591379,0.00021895,2]
[321705178,1712417431951,-202.59210874,0.00021895,2]
[321705179,1712417431961,-857.17181074,0.00021895,2]
[321705180,1712417431971,-361.10221362,0.00021895,2]
[321705181,1712417431982,-166.57598756,0.00021895,2]
[321705182,1712417431993,-165.52240493,0.00021895,2]
[321705183,1712417432003,-1221.36561654,0.00021896,2]
[321705184,1712417432012,-24723.62888269,0.00021897,2]
[321705185,1712417432027,-5438.63366376,0.00021897,2]
[321705186,1712417432036,-451.03177265,0.000219,2]
[321705187,1712417432046,-307.48,0.00021909,2]
[321705188,1712417432056,-250.0,0.00021918,2]
[321705189,1712417432065,-307.48,0.00021968,2]
[321705190,1712417432075,-59.88456359,0.00022,4]
[321705191,1712417432086,-2187.8714341,0.00022,4]
[321705192,1712417432114,-271.29633934,0.00022,4]
[321705193,1712417432126,-593.23123114,0.00022,4]
[321705203,1712417437441,-6506.34602051,0.00022,4]
[321705206,1712417437497,-5675.86203674,0.00022,4]
[321705207,1712417437555,-1000.33452629,0.00022,4]
[321705208,1712417437566,-621.66917706,0.00022,4]
[321705209,1712417437718,-6697.3987,0.00022,4]
[321705223,1712417439509,-200.0,0.00021588,2]
[321705230,1712417439715,-1000.0,0.00021999,2]
[321705231,1712417439726,-918.780223,0.00022,4]
[321705232,1712417439739,-706.12499986,0.00022,4]
[321705275,1712417442532,-275.5634007,0.00021785,2]
[321705276,1712417442680,-1517.5240873,0.00021785,2]
[321705277,1712417442691,-2006.71406397,0.00021998,2]
[321705278,1712417442702,-1101.0,0.00021999,2]
[321705279,1712417442713,-13021.54805378,0.00022,4]
[321705414,1712417445558,-6870.67649419,0.00021927,2]
[321705416,1712417445568,-6806.62350582,0.00022,4]
[321705423,1712417445725,-293.5821615,0.00022,4]
[321705424,1712417445836,-595.10001248,0.00022,4]
[321705425,1712417445884,-839.3,0.00022,4]
[321705630,1712417452608,368.35349588,0.00021,2]
[321705631,1712417454356,2034.88579897,0.00021,2]
[321705632,1712417457875,246.89303006,0.00018473,2]
[321705633,1712417459157,194.9896372,0.0002079,2]
[321705640,1712417475737,500.0,0.0002036,2]
[321705643,1712417483426,3013.3751,0.00020901,2]
[321705645,1712417486600,500.0,0.0002036,2]